Workbook

Sheet Sheet1
A1: 2024年生产部6月接收处置记录统计表 | R1: 自产废物
A2: 废物名称 | B2: 危废代码 | C2: 形态 | D2: 上月结存 | E2: 本月接收量 | F2: 处置量及工艺 | J2: 库存量 | K2: 1#库 | L2: 2#库 | M2: 干化池 | N2: 罐区 | O2: 料坑 | R2: 废物名称 | S2: 上月结存 | T2: 本月产生量 | U2: 包数 | V2: 本月处理 | Y2: 库存 | Z2: 备注 | AA2: 存储位置
F3: 固废焚烧 | G3: 废液焚烧 | H3: 清洗大桶 | I3: 污泥干化 | K3: 1#库 | L3: 2#库 | M3: 干化池 | N3: 罐区 | O3: 料坑 | V3: 焚烧处置 | W3: 液体炉 | X3: 拉运
A4: 精馏残渣 | B4: 271-001-02 | C4: 固态 | D4: 5.1936 | F4: =5.1936 -> 5.1936 | J4: =D4+E4-F4-G4-H4-I4 -> 0 | P4: =K4+L4+M4+N4+O4 -> 0 | R4: 炉渣（回转窑） | S4: 410.427 | T4: 120.445 | U4: 110 | X4: =126.605 -> 126.605 | Y4: =S4+T4-V4-X4-W4 -> 404.267
A5: 废有机溶剂 | B5: 271-002-02 | C5: 液态 | D5: 15.321 | J5: 15.321 | L5: 15.321 | P5: 15.321 | R5: 飞灰（回转窑） | S5: 24.935 | T5: =26.835 -> 26.835 | U5: 72 | X5: 21.295 | Y5: 30.475
A6: 过滤介质 | B6: 271-003-02 | C6: 固态 | D6: 3.9172 | F6: =3.9172 -> 3.9172 | J6: 0 | P6: 0 | R6: 飞灰（废液炉） | S6: 5.29 | T6: 3.36 | U6: 8 | Y6: 8.65
A7: 废盐 | B7: 271-005-02 | C7: 固态 | D7: 10 | E7: =17.44+22.22 -> 39.66 | F7: =10+22.22 -> 32.22 | J7: 17.44 | K7: 17.44 | P7: 17.44 | R7: 废油渣/泥 | S7: 0 | Y7: 0 | Z7: 精馏切水后剩下的罐底泥
A8: 实验室废液 | B8: 900-002-03 | C8: 液态 | D8: 11.7 | E8: =12.616 -> 12.616 | G8: =11.7+5.316+7.3 -> 24.316 | J8: 0 | P8: 0 | R8: 含油污水 | S8: 0 | T8: 3.075 | V8: 3.075 | Y8: 0 | Z8: 蒸汽清洗过程 | AA8: 2#库
A9: 高危化学品 | B9: 900-002-03 | C9: 半固态 | D9: 0 | E9: =0.193 -> 0.193 | F9: =0.193 -> 0.193 | J9: 0 | P9: 0 | R9: 废商标 | S9: 0 | T9: 0.61 | V9: 0.61 | Y9: 0 | Z9: 除商标 | AA9: 2#库
A10: 一般废药品 | B10: 900-002-03 | C10: 固态 | D10: 0 | E10: =0.395+0.00142 -> 0.39642 | F10: =0.395+0.00142 -> 0.39642 | J10: 0 | P10: 0 | R10: 废残液 | S10: 0 | T10: 2.255 | V10: 2.255 | Y10: 0 | Z10: 抽残液 | AA10: 2#库
A11: 磷化铝、杀虫剂 | B11: 900-003-04 | C11: 固态 | D11: 0 | J11: 0 | P11: 0 | R11: 废渣 | S11: 0 | T11: 1.66 | V11: 1.66 | Y11: 0 | Z11: 清洗过程 | AA11: 2#库
A12: 废药物、药品 杀虫剂、磷化铝等 | B12: 900-003-04 | C12: 半固态 | D12: 0 | J12: 0 | P12: 0 | R12: 漆渣 | S12: 0 | Y12: 0 | Z12: 清洗过程
A13: 废盐 | B13: 263-008-04 | C13: 固态 | D13: 9.12 | F13: =9.12 -> 9.12 | J13: 0 | P13: 0 | R13: 污水厂污泥 | S13: 0 | T13: 1.18 | V13: 1.18 | Y13: 0 | Z13: 水处理后产生的污泥 | AA13: 2#库
A14: 蒸馏残液 | B14: 263-008-04 | C14: 半固态 | D14: 13.18 | F14: =3.78 -> 3.78 | J14: 9.4 | K14: 9.4 | P14: 9.4 | R14: 废清洗剂 | S14: 0 | Y14: 0 | Z14: 清洗剂清洗过程
A15: 废渣 | B15: 263-009-04 | C15: 固态 | D15: 36.02 | F15: =5+5+11.02+5+5 -> 31.02 | J15: 5 | K15: 5 | P15: 5
A16: 污泥 | B16: 263-011-04 | C16: 固态 | D16: 25.06 | F16: =22.58 -> 22.58 | J16: 2.48 | K16: 2.48 | P16: 2.48
A17: 废弃木材 | B17: 201-003-05 | C17: 固态 | D17: 0 | E17: =5.78+5.04+5.58+10.42+11.44+11.38+11.28 -> 60.92 | F17: =16.4+10.42+5.92+11.06 -> 43.8 | J17: 17.12 | K17: 17.12 | P17: 17.12
A18: 废有机溶剂 | B18: 900-401-06 | C18: 液态 | D18: 0 | J18: 0 | P18: 0
A19: 废有机溶剂及废物 | B19: 900-402-06 | C19: 液态 | D19: 125.195 | E19: =0.845+30.6+1.65+0.016 -> 33.111 | F19: =10.8+0.845 -> 11.645 | G19: =9.016 -> 9.016 | J19: 137.645 | K19: 2.094 | L19: 135.551 | P19: 137.645
A20: 清洗剂、渗透剂包装物 | B20: 900-402-06 | C20: 固态 | D20: 0 | E20: =0.014 -> 0.014 | F20: =0.014 -> 0.014 | J20: 0 | P20: 0
A21: 废有机溶剂 | B21: 900-404-06 | C21: 液态 | D21: 11.19 | E21: =5 -> 5 | J21: 16.19 | L21: 16.19 | P21: 16.19
A22: 定期更换的活性炭 | B22: 900-405-06 | C22: 固态 | D22: 0 | J22: 0 | P22: 0
A23: 丙烯酸甲酯聚合物 | B23: 900-407-06 | C23: 固态 | D23: 0 | J23: 0 | P23: 0
A24: 废有机溶剂 | B24: 900-407-06 | C24: 液态 | D24: 51.78 | E24: =18.534 -> 18.534 | G24: =23+18.78+10 -> 51.78 | J24: 18.534 | L24: 18.534 | P24: 18.534
A25: 油污水 | B25: 251-001-08 | C25: 液态 | D25: 0 | E25: =31.36+51.92 -> 83.28 | J25: 83.28 | L25: 83.28 | P25: 83.28
A26: 废滤芯 | B26: 251-012-08 | C26: 固态 | D26: 0 | J26: 0 | P26: 0
A27: 废溶剂油 | B27: 291-001-08 | C27: 液态 | D27: 1.35 | G27: =1.35 -> 1.35 | J27: 0 | P27: 0
A28: 废溶剂油 | B28: 291-001-08 | C28: 半固态 | D28: 62.94 | J28: 62.94 | K28: 62.94 | P28: 62.94
A29: 油泥、油脚 | B29: 071-001-08 | C29: 液态 | D29: 0 | J29: 0 | P29: 0
A30: 含油泥浆 | B30: 071-002-08 | C30: 液态 | D30: 1114.5 | E30: =17.6 -> 17.6 | F30: =6.8 -> 6.8 | J30: 1125.3 | N30: 1125.3 | P30: 1125.3
A31: 含油岩屑 | B31: 071-002-08 | C31: 半固态 | D31: 2949.029 | E31: =236.544 -> 236.544 | F31: =11.08+21.06 -> 32.14 | J31: 3153.433 | M31: =626.801-67.97 -> 558.831 | N31: 2594.602 | P31: 3153.433
A32: 废油泥 | B32: 900-200-08 | C32: 半固态 | D32: 0 | J32: 0 | P32: 0
A33: HW08废油 | B33: 900-200-08 | C33: 液态 | D33: 27.56 | F33: =13.88 -> 13.88 | J33: 13.68 | K33: 5.88 | N33: 7.8 | P33: 13.68
A34: 油泥 | B34: 900-201-08 | C34: 液态 | D34: 3.626 | J34: 3.626 | N34: 3.626 | P34: 3.626
A35: 油泥 | B35: 900-201-08 | C35: 半固态 | D35: 0 | J35: 0 | P35: 0
A36: 废润滑油废浮渣 | B36: 900-209-08 | C36: 液态 | D36: 0 | E36: =0.25 -> 0.25 | F36: =0.25 -> 0.25 | J36: 0 | P36: 0
A37: 水处理浮渣及污泥 | B37: 900-210-08 | C37: 半固态 | D37: 3.15 | E37: =0.66+3.3 -> 3.96 | F37: =3.15+0.66 -> 3.81 | J37: 3.3 | K37: 3.3 | P37: 3.3
A38: 废机油、含油废水 | B38: 900-210-08 | C38: 液态 | D38: 184.42 | J38: 184.42 | N38: 184.42 | P38: 184.42
A39: 废油泥 | B39: 900-210-08 | C39: 固态 | D39: 34.6 | E39: =39.78+10.56 -> 50.34 | F39: =19.66 -> 19.66 | J39: 65.28 | K39: 30.68 | L39: 34.6 | P39: 65.28
A40: 废水处理过程产废油、油泥、浮渣 | B40: 900-210-08 | C40: 液态 | D40: 1192 | E40: =144+48+80+80+72 -> 424 | J40: 1616 | N40: =1808-192 -> 1616 | P40: 1616
A41: 废白土 | B41: 900-213-08 | C41: 固态 | D41: 0 | E41: =12.24 -> 12.24 | F41: =12.24 -> 12.24 | J41: 0 | P41: 0
A42: 废机油 | B42: 900-213-08 | C42: 液态 | D42: 1 | J42: 1 | N42: 1 | P42: 1
A43: 废矿物油 | B43: 900-214-08 | C43: 液态 | D43: 50.56055 | E43: =0.08+0.52+0.0551 -> 0.6551 | G43: =3.16+2 -> 5.16 | J43: 46.05565 | N43: 46.05565 | P43: 46.05565
A44: 废矿物油 | B44: 900-214-08 | C44: 半固态 | D44: 0.56 | J44: 0.56 | L44: 0.56 | P44: 0.56
A45: 废矿物油 | B45: 900-217-08 | C45: 液态 | D45: 18.64185 | E45: =2.3+2.2+3.3 -> 7.8 | J45: 26.44185 | N45: 26.44185 | P45: 26.44185
A46: 废甘油 | B46: 900-217-08 | C46: 半固态 | D46: 0 | J46: 0 | P46: 0
A47: 废液压油 | B47: 900-218-08 | C47: 液态 | D47: 29.3308 | E47: =2.74 -> 2.74 | J47: 32.0708 | N47: 32.0708 | P47: 32.0708
A48: 废冷冻机油 | B48: 900-219-08 | C48: 液态 | D48: 8.94 | E48: =0.2 -> 0.2 | J48: 9.14 | N48: 9.14 | P48: 9.14
A49: 废矿物油与含矿物油废物 | B49: 900-220-08 | C49: 液态 | D49: 9.51833 | E49: =5.8 -> 5.8 | F49: 9.5 | J49: 5.81833 | N49: 5.81833 | P49: 5.81833
A50: 废油泥 | B50: 900-221-08 | C50: 液态 | D50: 0 | J50: 0 | P50: 0
A51: 废油泥 | B51: 900-221-08 | C51: 半固态 | D51: 0 | E51: =51.26 -> 51.26 | F51: =10+10 -> 20 | J51: 31.26 | K51: 31.26 | P51: 31.26
A52: 废矿物油 | B52: 900-249-08 | C52: 液态 | D52: 115.4835 | E52: =9.8+1.24+1+1.67+1.48+0.44 -> 15.63 | F52: =8+13+3+3.42 -> 27.42 | G52: =8.5+1.3 -> 9.8 | J52: 93.8935 | N52: =10.6+83.2935 -> 93.8935 | P52: 93.8935
A53: 废矿物油、废油桶 | B53: 900-249-08 | C53: 固态 | D53: 35.511 | E53: =0.6+4.24+3.5+7.98+8.46+8.6+0.34+0.18 -> 33.9 | H53: =0.6+7.74+0.14+16.3+4.3+4.3+0.52 -> 33.9 | J53: 35.511 | K53: 1.36 | L53: 34.151 | P53: 35.511
A54: 废矿物油、油泥 | B54: 900-249-08 | C54: 半固态 | D54: 16.42 | J54: 16.42 | K54: 3.6 | L54: 12.82 | P54: 16.42
A55: 废水、乳化液 | B55: 900-007-09 | C55: 液态 | D55: 1.64 | E55: =8+11.887+2.859 -> 22.746 | J55: 24.386 | L55: 23.986 | N55: 0.4 | P55: 24.386
A56: 废乳化液 | B56: 900-006-09 | C56: 液态 | D56: 38.06 | E56: =7.8+12+3.64+16 -> 39.44 | J56: 77.5 | L56: 77.5 | P56: 77.5
A57: 砂轮沫 | B57: 900-006-09 | C57: 固态 | D57: 0 | E57: =5.337 -> 5.337 | F57: =5.337 -> 5.337 | J57: 0 | P57: 0
A58: 废焦油渣 | B58: 252-005-11 | C58: 固态 | D58: 0 | J58: 0 | P58: 0
A59: 煤焦油、釜残 | B59: 900-013-11 | C59: 固态 | D59: 11.2224 | J59: 11.2224 | L59: 11.2224 | P59: 11.2224
A60: 煤焦油 | B60: 900-013-11 | C60: 液态 | D60: 25.4 | G60: =4.4 -> 4.4 | J60: 21 | K60: 21 | P60: 21
A61: 釜残 | B61: 900-013-11 | C61: 半固态 | D61: 262.52 | E61: =63.32+14.66 -> 77.98 | F61: =5+10+10+48.4+18+35.34+18 -> 144.74 | J61: 195.76 | K61: 195.76 | P61: 195.76
A62: 煤焦油 | B62: 451-003-11 | C62: 半固态 | D62: 0 | J62: 0 | P62: 0
A63: 煤焦油 | B63: 451-003-11 | C63: 液态 | D63: 99.6 | E63: =50.46 -> 50.46 | J63: 150.06 | L63: 56.26 | N63: 93.8 | P63: 150.06
A64: 焦油渣 | B64: 451-003-11 | C64: 固态 | D64: 0 | J64: 0 | P64: 0
A65: 焦油渣 | B65: 451-001-11 | C65: 固态 | D65: 0 | J65: 0 | P65: 0
A66: 漆渣 | B66: 900-250-12 | C66: 固态 | D66: 0 | J66: 0 | P66: 0
A67: 漆渣 | B67: 900-251-12 | C67: 半固态 | D67: 14.374 | F67: =4.374 -> 4.374 | J67: 10 | K67: 10 | P67: 10
A68: 废彩涂液 | B68: 900-252-12 | C68: 液态 | D68: 46.32 | E68: =26.68 -> 26.68 | J68: =D68+E68-F68-G68-H68-I68 -> 73 | K68: 21.92 | L68: 51.08 | P68: =K68+L68+M68+N68+O68 -> 73
A69: 废漆渣 | B69: 900-252-12 | C69: 固态 | D69: 121.34 | E69: =4.5+0.72+10.33+5.08 -> 20.63 | F69: =2.08+9.5+15.01+17+9.36+5+5 -> 62.95 | H69: =0.72 -> 0.72 | J69: 78.3 | K69: 32.1 | L69: 46.2 | P69: 78.3
A70: 漆渣 | B70: 900-252-12 | C70: 半固态 | D70: 5.82 | J70: 5.82 | L70: 5.82 | P70: 5.82
A71: 废油漆 | B71: 900-256-12 | C71: 液态 | D71: 0 | E71: =5.72 -> 5.72 | J71: 5.72 | K71: 5.72 | P71: 5.72
A72: 油墨渣子、油漆 | B72: 900-299-12 | C72: 半固态 | D72: 0 | E72: =0.01855 -> 0.01855 | F72: =0.01855 -> 0.01855 | J72: 0 | P72: 0
A73: 硒鼓墨盒 | B73: 900-299-12 | C73: 固态 | D73: 0 | E73: =0.12+0.03425 -> 0.15425 | F73: =0.12+0.03425 -> 0.15425 | J73: 0 | P73: 0
A74: 油漆渣 | B74: 900-299-12 | C74: 液态 | D74: 2.32 | E74: =1.6 -> 1.6 | J74: 3.92 | K74: 2.32 | L74: 1.6 | P74: 3.92
A75: 废油墨 | B75: 264-011-12 | C75: 液态 | D75: 0 | J75: 0 | P75: 0
A76: 油墨渣 | B76: 264-011-12 | C76: 固态 | D76: 0 | J76: 0 | P76: 0
A77: 废水处理污泥 | B77: 264-012-12 | C77: 固态 | D77: 8 | E77: =10.4 -> 10.4 | F77: =10.4 -> 10.4 | J77: 8 | K77: 8 | P77: 8
A78: 废漆渣稀释剂混合物 | B78: 264-013-12 | C78: 液态 | D78: 0 | J78: 0 | P78: 0
A79: 发泡废料，废胶水 | B79: 900-014-13 | C79: 半固态 | D79: 0.166 | J79: 0.166 | K79: 0.166 | P79: 0.166
A80: 废胶水 | B80: 900-014-13 | C80: 液态 | D80: 0 | J80: 0 | P80: 0
A81: 发泡废料，废胶水 | B81: 900-014-13 | C81: 固态 | D81: 3.28 | E81: =7.32+1.2 -> 8.52 | F81: =3.28 -> 3.28 | J81: 8.52 | K81: 8.52 | P81: 8.52
A82: 废树脂 | B82: 900-015-13 | C82: 固态 | D82: 0 | E82: =0.4 -> 0.4 | F82: =0.4 -> 0.4 | J82: 0 | P82: 0
A83: 废树脂 | B83: 900-015-13 | C83: 半固态 | D83: 0 | J83: 0 | P83: 0
A84: 有机树脂废物 | B84: 900-016-13 | C84: 半固态 | D84: 10.07 | J84: 10.07 | K84: 6.5 | L84: 3.57 | P84: 10.07
A85: 捞胶（胶渣、填埋料） | B85: 265-101-13 | C85: 固态 | D85: 31.14 | E85: =22.44 -> 22.44 | F85: =21.4+9.74+10+7.44 -> 48.58 | J85: 5 | K85: 5 | P85: 5
A86: 不合格有机树脂 | B86: 265-101-13 | C86: 半固态 | D86: 0 | J86: 0 | P86: 0
A87: 含盐废水 | B87: 265-103-13 | C87: 液态 | D87: 9.42 | F87: =9.42 -> 9.42 | J87: 0 | P87: 0
A88: 釜残与滤渣 | B88: 265-103-13 | C88: 半固态 | D88: 0 | J88: 0 | P88: 0
A89: 产品水解物、氯化镁盐 | B89: 265-103-13 | C89: 固态 | D89: 0 | E89: =29.1+28.04 -> 57.14 | F89: =36.54-7.44 -> 29.1 | J89: 28.04 | K89: 28.04 | P89: 28.04
A90: 污泥 | B90: 265-104-13 | C90: 半固态 | D90: 0 | J90: 0 | P90: 0
A91: 污水处理站污泥 | B91: 265-104-13 | C91: 固态 | D91: 0 | J91: 0 | P91: 0
A92: 印刷版 | B92: 231-002-16 | C92: 固态 | D92: 0 | J92: 0 | P92: 0
A93: 废显影液 | B93: 900-019-16 | C93: 液态 | D93: 0 | J93: 0 | P93: 0
A94: 废显影液 | B94: 398-001-16 | C94: 液态 | D94: 0 | J94: 0 | P94: 0
A95: 助镀再生废渣 | B95: 336-051-17 | C95: 固态 | D95: 0 | J95: 0 | P95: 0
A96: 含铬污泥 | B96: 336-060-17 | C96: 固态 | D96: 0 | J96: 0 | P96: 0
A97: 镀铜溶液 | B97: 336-062-17 | C97: 液态 | D97: 21.06 | G97: =21.06 -> 21.06 | J97: 0 | P97: 0
A98: 含铜污泥 | B98: 336-062-17 | C98: 固态 | D98: 0 | J98: 0 | P98: 0
A99: 污泥 | B99: 336-053-17 | C99: 固态 | D99: 0 | J99: 0 | P99: 0
A100: 电镀污泥 | B100: 336-063-17 | C100: 半固态 | D100: 0 | J100: 0 | P100: 0
A101: 电镀污泥 | B101: 336-063-17 | C101: 固态 | D101: 0 | J101: 0 | P101: 0
A102: 磷化污泥 | B102: 336-064-17 | C102: 固态 | D102: 16.92 | E102: =18.02+5.75 -> 23.77 | J102: 40.69 | L102: 40.69 | P102: 40.69
A103: 金属表面处理污泥 | B103: 336-064-17 | C103: 半固态 | D103: 2.42 | F103: =2.42 -> 2.42 | J103: 0 | P103: 0
A104: 金属表面处理污泥 | B104: 336-064-17 | C104: 液态 | D104: 4.23 | E104: =0.21 -> 0.21 | F104: =1.9+0.76 -> 2.66 | J104: 1.78 | L104: 1.78 | P104: 1.78
A105: 污泥 | B105: 336-069-17 | C105: 半固态 | D105: 0 | J105: 0 | P105: 0
B106: 336-069-17 | C106: 液态 | D106: 0 | J106: 0 | P106: 0
A107: 污泥 | B107: 336-069-17 | C107: 固态 | D107: 0 | E107: =19.46 -> 19.46 | F107: =19.46 -> 19.46 | J107: 0 | P107: 0
A108: 废UV灯管 | B108: 900-023-29 | C108: 固态 | D108: 0 | J108: 0 | P108: 0
A109: 废碱液 | B109: 251-015-35 | C109: 液态 | D109: 13.22 | G109: =0.8 -> 0.8 | J109: 12.42 | L109: 12.42 | P109: 12.42
A110: 片碱袋 | B110: 900-399-35 | C110: 固态 | D110: 0 | J110: 0 | P110: 0
A111: 清洁剂 | B111: 900-399-35 | C111: 液态 | D111: 37.02 | G111: =4.3+13.74+8.48+10.5 -> 37.02 | J111: 0 | P111: 0
A112: 废硫氢化钠残渣 | B112: 900-399-35 | C112: 半固态 | D112: 0 | J112: 0 | P112: 0
A113: 废碱液 | B113: 900-352-35 | C113: 液态 | D113: 104.14 | E113: =6.2 -> 6.2 | J113: 110.34 | K113: 48.08 | L113: 62.26 | P113: 110.34
A114: 废碱液 | B114: 900-354-35 | C114: 液态 | D114: 0.9 | F114: =0.9 -> 0.9 | J114: 0 | P114: 0
A115: 含酚废水 | B115: 261-070-39 | C115: 液态 | D115: 73.84 | E115: =35.08 -> 35.08 | J115: 108.92 | N115: 108.92 | P115: 108.92
A116: 废活性炭 | B116: 261-071-39 | C116: 固态 | D116: 0 | J116: 0 | P116: 0
A117: 污泥 | B117: 261-084-45 | C117: 固态 | D117: 3.44 | F117: =3.44 -> 3.44 | J117: 0 | P117: 0
A118: 含油废物 | B118: 900-041-49 | C118: 固态 | D118: 1411.734 | E118: =9.34+44.2785+4.01+39.595+11.34+80.9912+0.0028+42.6369+3.3+76.943+83+11.99+8.04+14.64+158.837+14.495+10.466728+4.76 -> 618.666128 | F118: =133.404+93.76+136.0685+76.58+129.0749+48.618+42.735+67.88+24.98+21.758128+0.0886 -> 774.947128 | H118: =4.12+3.9+5.35+4.58+9.76+2.95+3.46+4.94+9.76 -> 48.82 | J118: 1206.633 | K118: =923.945-420 -> 503.945 | L118: 282.688 | O118: 420 | P118: 1206.633
A119: 含有或沾染危险废物的废弃物 | B119: 900-041-49 | C119: 半固态 | D119: 0 | E119: =25.8 -> 25.8 | J119: 25.8 | L119: 25.8 | P119: 25.8
A120: 防腐剂 | B120: 900-041-49 | C120: 液态 | D120: 0 | J120: 0 | P120: 0
A121: 废酸碱袋 | B121: 900-042-49 | C121: 固态 | D121: 0 | E121: =1.268 -> 1.268 | F121: =1.268 -> 1.268 | J121: 0 | P121: 0
A122: 污泥 | B122: 772-006-49 | C122: 固态 | D122: 34.34 | E122: =6.5 -> 6.5 | F122: =6.5+10.34+24 -> 40.84 | J122: 0 | P122: 0
A123: 废活性炭 | B123: 900-039-49 | C123: 固态 | D123: 15.568 | E123: =6.94+7.24 -> 14.18 | F123: =0.34+8.76+6.94 -> 16.04 | J123: 13.708 | L123: 13.708 | P123: 13.708
A124: 废水污泥 | B124: 900-046-49 | C124: 固态 | D124: 4.2 | E124: =5.4 -> 5.4 | F124: =4.2+5.4 -> 9.6 | J124: 0 | P124: 0
A125: 污泥 | B125: 900-046-49 | C125: 半固态 | D125: 0 | J125: 0 | P125: 0
A126: 过期化学药品 | B126: 900-047-49 | C126: 固态 | D126: 0.989 | E126: =1.551+1.331+0.08+0.28 -> 3.242 | F126: =0.7+1.021+0.53+1.411+0.28 -> 3.942 | J126: 0.289 | L126: 0.289 | P126: 0.289
A127: 乙腈、异丙酮、废液 | B127: 900-047-49 | C127: 液态 | D127: 21.9548 | E127: =11.61+0.2+4.183+3.09+4.122+5.8076+11.439+0.27+2.469+0.54+5.39742 -> 49.12802 | F127: =2.38+0.85 -> 3.23 | G127: =12.0248+16.81+8.951+15.803+3.8382+4.9784+5.39742 -> 67.80282 | J127: 0.05 | L127: 0.05 | P127: 0.05
A128: 过期药品、剧毒品 | B128: 900-999-49 | C128: 固态 | D128: 0 | E128: =1.952+7.54 -> 9.492 | F128: =1.152+0.8+7.54 -> 9.492 | J128: 0 | P128: 0
A129: 过期面膜原料、残液 | B129: 900-999-49 | C129: 液态 | D129: 3.8 | E129: =0.7 -> 0.7 | F129: =0.7 -> 0.7 | J129: 3.8 | K129: 1.996 | L129: 1.804 | P129: 3.8
A130: 废催化剂 | B130: 261-152-50 | C130: 固态 | D130: 0 | E130: =2.54 -> 2.54 | J130: 2.54 | L130: 2.54 | P130: 2.54
A131: 小计： | D131: =SUM(D4:D130) -> 8637.28603 | E131: 2287.945468 | F131: 1517.272148 | G131: 232.50482 | H131: 83.44 | I131: 0 | J131: 9092.01453 | K131: =SUM(K4:K130) -> 1091.621 | L131: 1072.2744 | M131: 558.831 | N131: 5949.28813 | O131: 420 | P131: 9092.01453
A132: 合计： | F132: =F131+G131+H131+I131 -> 1833.216968
A135: 1月转走0.04康辉新材料 | B135: 0.04
